Workbook

Sheet 2014년 결산서(예천)
B1: 2014년도 예천군수화통역센터 결산서
J3: (단위 : 천원)
B4: 세 입 부 | G4: 세 출 부
B5: 구 분 | D5: 2014예산 | E5: 2014결산 | F5: 증감(△) | G5: 구 분 | I5: 2014예산 | J5: 2014결산 | K5: 증감(△)
B6: 총 계 | D6: =SUM(D7:D12) -> 84,660 | E6: =SUM(E7:E12) -> 92,878 | F6: =E6-D6 -> 8218 | G6: 총 계 | I6: =SUM(I7:I13) -> 84,660 | J6: =SUM(J7:J13) -> 92,878 | K6: =SUM(K7:K13) -> 8218
B7: 이 월 금 | C7: 이 월 금 | D7: 650 | E7: 644 | F7: =E7-D7 -> -6 | G7: 사무비 | H7: 인건비 | I7: 66,999 | J7: 65,042 | K7: =J7-I7 -> -1957
B8: 사업수입 | C8: 사업수입 | D8: 426 | E8: 1,232 | F8: =E8-D8 -> 806 | H8: 업무추진비 | I8: 4,000 | J8: 3,600 | K8: -400
B9: 보 조 금 | C9: 보 조 금 | D9: 83,584 | E9: 86,793 | F9: =E9-D9 -> 3209 | H9: 운영비 | I9: 7,061 | J9: 8,935 | K9: 1874
B10: 후 원 금 | C10: 후 원 금 | D10: 0 | E10: 4,175 | F10: =E10-D10 -> 4175 | G10: 재산조성비 | H10: 시설비 | I10: 5,400 | J10: 7,720 | K10: 2320
B11: 전 입 금 | C11: 전 입 금 | D11: 0 | E11: 22 | F11: =E11-D11 -> 22 | G11: 사업비 | H11: 사업비 | I11: 1,200 | J11: 6,603 | K11: 5403
B12: 잡 수 입 | C12: 잡 수 입 | D12: 0 | E12: 12 | F12: =E12-D12 -> 12 | G12: 예비비 및 기타 | H12: 예비비 및 기타 | I12: 0 | J12: 152 | K12: 152
G13: 이월금 | H13: 이 월 금 | I13: 0 | J13: 826 | K13: 826

Sheet 2015년 예산서(예천)
B1: 2015년도 예천군수화통역센터 예산서
J3: (단위 : 천원)
B4: 세 입 부 | G4: 세 출 부
B5: 구 분 | D5: 2014결산 | E5: 2014결산 | F5: 증감(△) | G5: 구 분 | I5: 2014결산 | J5: 2014결산 | K5: 증감(△)
B6: 총 계 | D6: =SUM(D7:D12) -> 92,878 | E6: =SUM(E7:E12) -> 88,303 | F6: =E6-D6 -> -4575 | G6: 총 계 | I6: =SUM(I7:I13) -> 92,878 | J6: =SUM(J7:J13) -> 88,303 | K6: =SUM(K7:K13) -> -4575
B7: 이 월 금 | C7: 이 월 금 | D7: 644 | E7: 1,000 | F7: =E7-D7 -> 356 | G7: 사무비 | H7: 인건비 | I7: 65,042 | J7: 68,466 | K7: =J7-I7 -> 3424
B8: 사업수입 | C8: 사업수입 | D8: 1,232 | E8: 500 | F8: =E8-D8 -> -732 | H8: 업무추진비 | I8: 3,600 | J8: 4,300 | K8: 700
B9: 보 조 금 | C9: 보 조 금 | D9: 86,793 | E9: 86,793 | F9: =E9-D9 -> 0 | H9: 운영비 | I9: 8,935 | J9: 11,871 | K9: 2936
B10: 후 원 금 | C10: 후 원 금 | D10: 4,175 | E10: 0 | F10: =E10-D10 -> -4175 | G10: 재산조성비 | H10: 시설비 | I10: 7,720 | J10: 1,456 | K10: -6264
B11: 전 입 금 | C11: 전 입 금 | D11: 22 | E11: 0 | F11: =E11-D11 -> -22 | G11: 사업비 | H11: 사업비 | I11: 6,603 | J11: 2,200 | K11: -4403
B12: 잡 수 입 | C12: 잡 수 입 | D12: 12 | E12: 10 | F12: -2 | G12: 예비비 및 기타 | H12: 예비비 및 기타 | I12: 152 | J12: 10 | K12: -142
G13: 이월금 | H13: 이 월 금 | I13: 826 | J13: 0 | K13: -826
